[Event "French-ch U16-U18 2024"]
[Site "Agen"]
[Date "2024.04.19"]
[Round "7.10"]
[White "Zienkiewicz, Jan"]
[Black "Le Roy, Tristan"]
[Result "1/2-1/2"]
[ECO "C54"]
[WhiteElo "2240"]
[BlackElo "1970"]
[Annotator "TA"]
[PlyCount "107"]
[EventDate "2024.04.14"]
[EventType "swiss"]
[EventCountry "FRA"]
[SourceTitle "playchess.com"]
[Source "ChessBase"]
[SourceQuality "1"]
[TimeControl "5400+30"]

{[%evp 9,107,11,16,3,10,9,8,10,9,4,24,12,23,15,11,20,20,13,20,0,0,-5,-8,0,-6,-28,0,0,35,20,14,15,18,17,37,14,19,0,27,-32,0,0,0,-36,-25,-108,-42,-87,-66,-97,-80,-97,-91,-86,-87,-91,-91,-115,-54,-59,-59,-106,-44,-140,-140,-181,-182,-160,-167,-148,-43,-131,-109,-113,-63,-59,-42,-42,-42,-43,-43,-107,-43,-179,-35,-35,-35,-40,-43,-99,-77,-66,-40,-250,0,-77,0,-41,-41,-41]} 1. e4 {[%emt 0:00:03]} e5 {[%emt 0:00:04]} 2. Nf3 {[%emt 0:00:05]} Nc6 {[%emt 0:00:05]} 3. Bc4 {[%emt 0:00:30]} Bc5 {[%emt 0:00:07]} 4. c3 {[%emt 0:00:07]} Nf6 {[%emt 0:00:05]} 5. d3 {[%emt 0:00:23]} a5 {[%emt 0:00:32]} 6. O-O {[%emt 0:00:22] With the idea d4.} d6 {[%emt 0:00:03]} 7. Re1 {[%emt 0:01:13]} h6 {[%emt 0:06:06]} 8. Nbd2 {[%emt 0:02:23][%cal Bb1d2,Bd2f1,Bf1g3][%mdl 32] The position is equal.} O-O {[%emt 0:04:01]} 9. Nf1 {[%emt 0:03:16]} Re8 {[%emt 0:02:33]} 10. Bb5 {[%emt 0:04:51]} Bd7 {[%emt 0:07:59]} 11. Ng3 {[%emt 0:03:11]} Bb6 {[%emt 0:13:22]} 12. h3 {[%emt 0:03:25]} Ne7 {[%emt 0:01:06]} 13. Bxd7 {[%emt 0:03:05]} Qxd7 {[%emt 0:00:02]} 14. Nh4 {[%emt 0:00:47]} d5 {[%emt 0:10:44]} 15. Qf3 {[%emt 0:05:00][%cal Oc1h6]} dxe4 {[%emt 0:02:11]} 16. dxe4 {[%emt 0:01:56][%cal Oc1h6]} Qe6 {[%emt 0:03:23]} 17. Ngf5 {[%emt 0:08:43]} (17. Nhf5 {is more complex.} Kh7 18. Nh5 Nxh5 19. Qxh5 Qg6 20. Qxg6+ Kxg6 21. Ne3) 17... Nxf5 {[%emt 0:03:12]} 18. Nxf5 {[%emt 0:00:52][%cal Oc1h6]} Nh7 {[%emt 0:06:42]} 19. Be3 {[%emt 0:09:53]} Bxe3 {[%emt 0:04:07]} 20. Rxe3 {[%emt 0:02:59]} Rad8 {[%emt 0:12:24]} 21. Qe2 {[%emt 0:04:58]} Kh8 {[%emt 0:03:10]} 22. Rg3 {[%emt 0:06:53]} Rg8 {[%emt 0:00:24]} 23. Kh2 {[%emt 0:01:08]} Nf8 {[%emt 0:01:40]} 24. Qe3 {[%emt 0:03:55]} (24. b4 $11) 24... b6 {[%emt 0:00:51]} 25. c4 {[%emt 0:04:48]} Kh7 {[%emt 0:03:42][%cal Of8g6]} (25... Qxc4 $2 26. Rxg7 Qe6 (26... Rxg7 27. Qxh6+ Rh7 28. Qf6+ Kg8 29. Ne7#) 27. Rxg8+ (27. Qxh6+ Qxh6 28. Rxg8+ Kxg8 $16) 27... Kxg8 28. Nxh6+ Kh7 29. Ng4 $18) 26. Rf3 {[%emt 0:07:56]} Ng6 {[%emt 0:01:42]} (26... Qxc4 $6 27. Rc1 Qxa2 28. Rxc7 $14) 27. g3 {[%emt 0:00:39] Against Nf4} (27. c5 $11 {keeps the balance.}) 27... Ne7 {[%emt 0:02:29]} (27... Qxc4 $17 28. Rc1 Qxa2 29. Rxc7 Rd1) 28. Rc1 {[%emt 0:04:30]} c5 {[%emt 0:00:54]} 29. Re1 {[%emt 0:08:09]} Nc6 {[%emt 0:01:25]} 30. b3 {[%emt 0:01:31]} Nd4 {[%emt 0:03:25]} 31. Nxd4 {[%emt 0:00:17]} Rxd4 {[%emt 0:00:19]} 32. g4 {[%emt 0:01:37]} Rgd8 {[%emt 0:03:40]} 33. Rg1 {[%emt 0:01:42]} Rd1 {[%emt 0:03:26]} (33... R8d6 $17 34. g5 h5) 34. Rxd1 $15 {[%emt 0:02:57]} Rxd1 {[%emt 0:00:02][%mdl 4096] Endgame. KQR-KQR} 35. Rf5 {[%emt 0:00:07]} (35. Qe2 $15 {might be stronger.} Qd7 36. Qe3) 35... g6 {[%emt 0:00:46]} (35... f6 $17 36. Qe2 Rd4) 36. Rf3 {[%emt 0:00:20]} (36. Qf3 $15 gxf5 37. Qxd1 fxe4 38. Qe1) 36... Kg7 $1 $17 {[%emt 0:00:26]} 37. g5 {[%emt 0:03:05]} hxg5 {[%emt 0:00:49]} 38. Qxg5 {[%emt 0:00:01]} Rd4 $1 {[%emt 0:00:37]} 39. Re3 {[%emt 0:00:24]} Qf6 {[%emt 0:00:10]} (39... a4 $17 {And now ...Rd2 would win.} 40. h4 Qf6 41. Qxf6+ Kxf6) 40. Qg3 {[%emt 0:01:44]} (40. Qxf6+ $15 Kxf6 41. a4) 40... Qf4 {[%emt 0:00:49]} 41. Kg2 {[%emt 0:00:41]} Qxg3+ {[%emt 0:00:32]} (41... Rxe4 $6 42. Qxf4 Rxf4 43. Rxe5 $11) ({Better is} 41... a4 $1 $17 {[%cal Ra4a3] ...a3 would now be deadly.} 42. bxa4 Qxg3+ (42... Rxe4 43. Rxe4 Qxe4+ 44. Kg1 $15) (42... Rxc4 43. Qxf4 exf4 44. Rb3 $15) 43. Rxg3 Rxe4 (43... Rxc4 44. Rb3 $17)) 42. Kxg3 {[%emt 0:00:07] KR-KR} Rd2 {[%emt 0:00:41]} (42... a4 $5 43. a3 Kh6 $15) 43. a4 {[%emt 0:00:06]} Kf6 {[%emt 0:00:24]} 44. h4 {[%emt 0:00:47]} Ke6 {[%emt 0:00:16]} 45. Kf3 {[%emt 0:00:56]} (45. Kg2 $15) 45... Rd1 {[%emt 0:00:37]} (45... f5 $1 $17 {...fxe4+ is the strong threat.} 46. exf5+ gxf5 (46... Kxf5 47. Kg3 $11)) 46. Kg4 {[%emt 0:00:30] [#]} (46. Kg2 $15) 46... f6 {[%emt 0:00:47]} ({Black should try} 46... f5+ $1 $19 47. Kg5 Rg1+ 48. Kh6 (48. Rg3 Rxg3+ 49. fxg3 fxe4 $19) 48... Rg2) 47. Rg3 {[%emt 0:00:35]} Rd4 {[%emt 0:00:29]} 48. Re3 {[%emt 0:00:07]} Kf7 {[%emt 0:00:32] Threatens to win with ...f5+.} 49. f3 {[%emt 0:00:47]} (49. Kg3 $15) 49... Rd1 {[%emt 0:00:27]} 50. Kg3 {[%emt 0:00:18]} Ke6 {[%emt 0:00:18]} 51. Kg4 $2 {[%emt 0:00:39] [#]} (51. Kf2 $15) 51... Kf7 $2 {[%emt 0:00:04]} (51... f5+ $1 $19 {and Black stays clearly on top.} 52. Kg5 Rg1+ 53. Kh6 Rg3) 52. Kg3 $1 {[%emt 0:00:35]} Ke6 {[%emt 0:00:05]} ({Black should play} 52... Kg7 $17) 53. Kf2 {[%emt 0:00:23]} Rh1 {[%emt 0:00:26]} 54. Kg3 {[%emt 0:00:33] Whites escaped into a draw.   Weighted Error Value: White=0.32/Black=0.26 (precise) .  Loses game:     	White=1     	---        Missed win:     	---       	Black=1      Mistake:       	White=8     	Black=8      Inaccurate:     	White=4     	Black=5      OK:         	White=11    	Black=13     Best:        	White=2     	Black=1      Strong:       	White=1     	Black=2} 1/2-1/2

[Event "French-ch U16-U18 2024"]
[Site "Agen"]
[Date "2024.04.19"]
[Round "7.11"]
[White "Deladerriere, Calypso"]
[Black "Hamm, Gabrielle"]
[Result "1-0"]
[ECO "B92"]
[WhiteElo "1935"]
[BlackElo "1797"]
[Annotator "TA"]
[PlyCount "47"]
[EventDate "2024.04.14"]
[EventType "swiss"]
[EventCountry "FRA"]
[SourceTitle "playchess.com"]
[Source "ChessBase"]
[SourceQuality "1"]
[TimeControl "5400+30"]

{[%evp 25,47,14,0,0,33,41,66,45,104,42,32,18,31,0,0,0,61,69,397,389,875,878,1021,1049]} 1. e4 {[%emt 0:00:07]} c5 {[%emt 0:00:05]} 2. Nf3 {[%emt 0:00:16]} d6 {[%emt 0:00:05]} 3. d4 {[%emt 0:00:11]} cxd4 {[%emt 0:00:08]} 4. Nxd4 {[%emt 0:00:15]} Nf6 {[%emt 0:00:06]} 5. Nc3 {[%emt 0:00:22]} a6 {[%emt 0:00:07]} 6. Be2 {[%emt 0:00:15]} e5 {[%emt 0:00:20]} 7. Nb3 {[%emt 0:00:13]} Be7 {[%emt 0:00:32]} 8. O-O {[%emt 0:00:29]} O-O {[%emt 0:01:16]} 9. Kh1 {[%emt 0:00:18]} Nc6 {[%emt 0:04:18][%cal Bb8c6,Bc6e5,Be5g6][%mdl 32]} 10. f4 {[%emt 0:00:32]} exf4 {[%emt 0:00:44]} 11. Bxf4 {[%emt 0:00:45]} Ne5 {[%emt 0:03:32]} 12. Qe1 {[%emt 0:04:00]} Be6 {[%emt 0:07:05]} 13. Rd1 {[%emt 0:00:57]} Qc7 {[%emt 0:01:32]} 14. Qg3 {[%emt 0:01:04]} Rfd8 {[%emt 0:05:54]} 15. Nd4 {[%emt 0:02:27]} Ng6 {[%emt 0:10:17]} 16. Bg5 {[%emt 0:04:18] White is slightly better.} Rac8 {[%emt 0:14:02]} (16... Kh8 $1 $14) 17. Bf3 {[%emt 0:14:28]} (17. Nf5 $16) 17... Bc4 $14 {[%emt 0:04:43]} 18. Rfe1 {[%emt 0:01:27]} h6 {[%emt 0:01:57]} 19. Bc1 {[%emt 0:03:48]} Nd7 {[%emt 0:05:20]} 20. Nf5 {[%emt 0:03:26] Prevents Bh4. Strongly threatening Nxe7+.} Nde5 {[%emt 0:02:07]} (20... Bf6 $11) 21. Be2 {[%emt 0:04:15] [#] Bxc4 would now be deadly. White has more active pieces.} b5 {[%emt 0:06:57][%mdl 8192]} (21... Be6 $1 $14) 22. Bxc4 $18 {[%emt 0:03:43]} Nxc4 {[%emt 0:04:07]} (22... Qxc4 23. Bxh6 Bf8) 23. Nd5 {[%emt 0:00:43]} Qa7 {[%emt 0:03:59]} 24. Ndxe7+ {[%emt 0:00:22] Weighted Error Value: White=0.11 (very precise) /Black=0.70.  Loses game:     	---       	Black=1      Mistake:       	White=1     	Black=3      Inaccurate:     	White=1     	Black=1      OK:         	White=4     	Black=2      Best:        	White=1     	---} 1-0

[Event "French-ch U16-U18 2024"]
[Site "Agen"]
[Date "2024.04.19"]
[Round "7.12"]
[White "Berezovsky, Fiorina"]
[Black "Diez, Agathe"]
[Result "1-0"]
[ECO "D00"]
[WhiteElo "1848"]
[BlackElo "1954"]
[Annotator "TA"]
[PlyCount "75"]
[EventDate "2024.04.14"]
[EventType "swiss"]
[EventCountry "FRA"]
[SourceTitle "playchess.com"]
[Source "ChessBase"]
[SourceQuality "1"]
[TimeControl "5400+30"]

{[%evp 9,75,-27,13,-13,-13,-8,-10,-13,-4,-27,-16,-25,0,-37,-35,-20,-6,-4,0,-6,8,0,-14,-27,-32,-25,-48,-59,-5,-56,-43,-60,-56,-94,-39,-83,-63,-143,-140,-130,-103,-100,-161,-153,-113,-143,-148,-150,-140,-151,-164,-151,-194,-203,0,0,0,-27,-30,-261,566,548,1217,628,671,676,677,671]} 1. d4 {[%emt 0:00:10]} d5 {[%emt 0:00:12]} 2. Nc3 {[%emt 0:00:18]} Nf6 {[%emt 0:00:24]} 3. Bf4 {[%emt 0:00:21]} a6 {[%emt 0:00:15]} 4. e3 {[%emt 0:01:47]} e6 {[%emt 0:00:37]} 5. Nf3 {[%emt 0:01:15]} Bd6 {[%emt 0:01:01]} 6. Ne5 {[%emt 0:02:56]} c5 {[%emt 0:03:17]} 7. dxc5 {[%emt 0:03:35]} Bxc5 {[%emt 0:00:26]} 8. Be2 {[%emt 0:04:18] The position is equal.} Nbd7 {[%emt 0:04:00]} 9. Nd3 {[%emt 0:04:15]} Ba7 {[%emt 0:03:39]} 10. O-O {[%emt 0:07:20]} Qe7 {[%emt 0:04:50]} 11. Ne5 {[%emt 0:05:55]} Nxe5 {[%emt 0:08:28]} 12. Bxe5 {[%emt 0:00:06][%cal Oe3e4]} b5 {[%emt 0:01:32]} 13. a4 {[%emt 0:04:48]} b4 {[%emt 0:01:14]} 14. Na2 {[%emt 0:03:03]} Bb7 {[%emt 0:03:58]} 15. c3 {[%emt 0:03:06]} bxc3 {[%emt 0:01:25]} 16. bxc3 {[%emt 0:04:50]} O-O {[%emt 0:06:38]} 17. Rb1 {[%emt 0:05:01]} Ne4 {[%emt 0:03:46]} 18. Bd3 {[%emt 0:04:49] [#] Threatens to win with Bxe4.} f6 {[%emt 0:11:17]} (18... Nc5 $1 $15) 19. Bg3 {[%emt 0:02:15]} (19. Bd4 $11) 19... Nc5 $15 {[%emt 0:03:33]} 20. Bc2 {[%emt 0:01:36]} a5 {[%emt 0:01:53]} 21. Re1 {[%emt 0:05:21]} Rfd8 {[%emt 0:05:45]} (21... e5 $17) 22. Nc1 {[%emt 0:02:30]} Ba6 {[%emt 0:03:08]} 23. Nd3 {[%emt 0:03:26]} (23. Ne2 $15) 23... Ne4 $17 {[%emt 0:01:07]} 24. Nf4 {[%emt 0:01:22]} g5 {[%emt 0:05:15]} 25. Nh5 {[%emt 0:04:59]} Nxc3 {[%emt 0:04:16]} 26. Qf3 {[%emt 0:01:03]} Rf8 {[%emt 0:00:20]} 27. Rb2 {[%emt 0:03:22]} Rac8 {[%emt 0:05:58]} 28. h4 {[%emt 0:03:06][%cal Og3d6]} Rc4 {[%emt 0:06:53][%csl LRa4,LRh4] ...g4 is the strong threat.} 29. e4 {[%emt 0:02:08]} dxe4 {[%emt 0:01:07]} (29... Nxa4 30. exd5 (30. Bxa4 Rxa4 31. exd5 Bd4 $16) 30... g4 (30... Nxb2 $2 31. Rxe6 Bxf2+ 32. Bxf2 $18) 31. d6 $16 (31. Rxe6 $2 Qxe6 32. Qd3 Rxc2 $19)) 30. Bxe4 {[%emt 0:00:46]} Nxe4 {[%emt 0:01:17]} (30... Nxa4 $2 {too greedy.} 31. Bd5 Nc5 (31... Nxb2 $2 {loses.} 32. Rxe6 $18) 32. Bxc4 Bxc4 33. Rc2 $18) 31. Rxe4 {[%emt 0:00:05] [#]} Rxe4 {[%emt 0:02:32]} ({Black should play} 31... Rc1+ $1 $19 32. Kh2 f5 (32... Bb7 33. Rxe6 Bxf3 34. Rxe7 $16)) 32. Qxe4 $11 {[%emt 0:00:04]} Qf7 {[%emt 0:00:12]} 33. Qg4 {[%emt 0:05:32][%cal Ob2c2] And now Rc2! would win.} h6 {[%emt 0:01:40] Strongly threatening ...f5.} 34. Rc2 $2 {[%emt 0:01:28]} (34. hxg5 $11 {and White stays safe.} fxg5 35. Rd2) 34... Bd3 $4 {[%emt 0:00:30][%mdl 8192] A strong pair of Bishops.} (34... f5 $19 {and all is fine.} 35. Qd1 f4) 35. Rc7 $18 {[%emt 0:00:19] White is clearly winning.} Qe8 {[%emt 0:00:30]} 36. Rxa7 {[%emt 0:00:57]} Bg6 {[%emt 0:00:17]} 37. Ng7 {[%emt 0:00:53]} Qc6 {[%emt 0:01:14]} 38. Qxe6+ {[%emt 0:00:35] Weighted Error Value: White=0.43/Black=0.33.  Loses game:     	White=1     	---        Missed win:     	---       	Black=2      Mistake:       	White=2     	Black=2      Inaccurate:     	White=5     	Black=1      OK:         	White=7     	Black=12     Best:        	White=2     	Black=4} 1-0

[Event "French-ch U16-U18 2024"]
[Site "Agen"]
[Date "2024.04.19"]
[Round "7.13"]
[White "Grimault, Leane"]
[Black "Yaghi, leen"]
[Result "1-0"]
[ECO "A13"]
[WhiteElo "1930"]
[BlackElo "1941"]
[Annotator "TA RC"]
[PlyCount "105"]
[EventDate "2024.04.14"]
[EventType "swiss"]
[EventCountry "FRA"]
[SourceTitle "playchess.com"]
[Source "ChessBase"]
[SourceQuality "1"]
[TimeControl "5400+30"]

{[%evp 12,105,-5,-13,31,37,27,18,5,14,11,4,11,0,7,6,15,0,26,12,31,19,14,9,57,45,112,87,113,57,122,64,72,63,74,68,104,65,82,68,131,52,76,70,76,72,79,64,65,54,66,37,41,41,70,46,146,16,535,543,569,577,568,553,664,659,675,674,676,681,702,697,851,840,823,752,29972,1319,5685,5595,29979,29980,29981,29982,29983,29983,29983,29984,29985,29986,29987,29988,29988,29989,29993,29992]} 1. Nf3 {[%emt 0:01:03]} Nf6 {[%emt 0:03:06]} 2. e3 {[%emt 0:00:21]} d5 {[%emt 0:01:15]} 3. c4 {[%emt 0:00:47]} e6 {[%emt 0:01:46]} 4. b3 {[%emt 0:01:40]} c5 {[%emt 0:03:10]} 5. cxd5 {[%emt 0:03:32]} exd5 {[%emt 0:00:55]} 6. d4 {[%emt 0:01:58]} Nc6 {[%emt 0:01:19]} 7. Bb2 {[%emt 0:01:40]} Be7 {[%emt 0:05:58]} 8. Be2 {[%emt 0:03:07]} O-O {[%emt 0:00:32]} 9. dxc5 {[%emt 0:04:39]} Bxc5 {[%emt 0:02:01] The position is equal.} 10. O-O {[%emt 0:01:11]} Qe7 {[%emt 0:03:45]} 11. Nc3 {[%emt 0:03:55]} Rd8 {[%emt 0:00:27]} 12. Na4 {[%emt 0:04:26]} Bd6 {[%emt 0:03:52]} 13. Rc1 {[%emt 0:03:48]} Bg4 {[%emt 0:05:11]} 14. h3 {[%emt 0:05:06]} Bh5 {[%emt 0:03:21]} 15. Nc3 {[%emt 0:12:42][%cal Ba4c3,Bc3b5,Bb5d4][%mdl 32]} Rac8 {[%emt 0:34:45]} 16. Nb5 {[%emt 0:08:14]} (16. Nxd5 $2 Nxd5 17. Qd3 (17. Qxd5 $2 Bh2+ 18. Nxh2 Rxd5 $19) 17... Bg6 $19) 16... Bb8 {[%emt 0:00:52]} 17. Nbd4 {[%emt 0:07:14]} Bxf3 {[%emt 0:08:03]} (17... Ne4 $11 {was preferrable.}) 18. Bxf3 {[%emt 0:01:48]} Qd6 {[%emt 0:03:56]} (18... Ne5 $14) 19. g3 $16 {[%emt 0:00:50] Active counter play!} Qd7 {[%emt 0:04:24]} 20. Bg2 {[%emt 0:01:09] This pair of bishops is nice.} (20. Nxc6 $16 Rxc6 21. Rxc6 bxc6 22. Kg2) 20... Ne4 {[%emt 0:04:35]} (20... Be5 $14) 21. Qe2 {[%emt 0:04:55]} (21. Bxe4 $16 dxe4 22. Nxc6 bxc6 23. Qh5) 21... Re8 {[%emt 0:04:52]} 22. Rfd1 {[%emt 0:06:06]} Nxd4 {[%emt 0:00:05]} 23. Bxd4 {[%emt 0:01:03]} Qf5 {[%emt 0:01:26]} 24. Qb2 {[%emt 0:05:37]} f6 {[%emt 0:01:07]} 25. Qe2 {[%emt 0:02:22]} Kh8 {[%emt 0:00:49]} (25... Rxc1 $14 26. Rxc1 a6) 26. Qf3 {[%emt 0:00:54]} ({White should play} 26. g4 $16 Qe6 27. Rxc8 Rxc8 28. Bb2) 26... Qe6 {[%emt 0:00:53]} 27. h4 {[%emt 0:01:10]} Rcd8 {[%emt 0:00:49]} 28. Rc2 {[%emt 0:02:39]} a6 {[%emt 0:00:41]} 29. Rdc1 {[%emt 0:00:31]} Be5 {[%emt 0:00:01]} 30. Bxe5 {[%emt 0:01:08]} fxe5 {[%emt 0:00:01]} 31. Qh5 {[%emt 0:01:34]} Nf6 {[%emt 0:00:36]} 32. Qe2 {[%emt 0:01:09]} Rc8 {[%emt 0:00:50]} 33. Qf1 {[%emt 0:02:11] [#] Strongly threatening Bh3.} Qf5 {[%emt 0:00:38]} (33... Rxc2 $14 34. Rxc2 h5) 34. Bh3 {[%emt 0:02:44]} (34. Rxc8 $16 Rxc8 35. Bh3 Rxc1 36. Bxf5 Rxf1+ 37. Kxf1) 34... Ng4 $2 {[%emt 0:00:36][%mdl 8192] Black cannot hold the game after this.} (34... Qxc2 $11 {and Black stays safe.} 35. Bxc8 Qxa2) 35. Qe2 $18 {[%emt 0:01:04]} (35. e4 dxe4 36. Rxc8 Rxc8 37. Rxc8+ Qxc8 $18) 35... h5 {[%emt 0:00:43] [#]} 36. f3 $1 {[%emt 0:00:31]} Rxc2 {[%emt 0:00:31]} 37. Rxc2 {[%emt 0:00:07]} Rf8 {[%emt 0:00:34]} 38. fxg4 {[%emt 0:00:17]} hxg4 {[%emt 0:00:26]} 39. Bxg4 {[%emt 0:00:06]} Qg6 {[%emt 0:00:19]} 40. Kg2 {[%emt 0:01:19]} Qe4+ {[%emt 0:00:22]} 41. Kh2 {[%emt 0:00:28]} ({Not} 41. Bf3 Rxf3 42. Qxf3 Qxc2+ 43. Kh3 Qc8+ 44. Qg4 Qe8 $11) 41... b5 {[%emt 0:00:46]} 42. Rc8 {[%emt 0:00:36]} Rxc8 {[%emt 0:00:36]} 43. Bxc8 {[%emt 0:00:04][%cal Oe2f2] aiming for Qf2!} g6 {[%emt 0:00:33]} 44. Bxa6 {[%emt 0:00:48]} (44. Qf2 $142 Qb4 45. Be6 (45. Bxa6 Kg7 $18) 45... Qe7 46. Qf7 (46. Bxd5 Kg7 $18) 46... Qxf7 47. Bxf7 Kg7 48. Bxd5 Kh8 49. b4) 44... d4 {[%emt 0:00:22]} 45. Bxb5 {[%emt 0:00:14] Intending Bd3 and mate.} Qd5 {[%emt 0:00:37]} 46. Bc4 {[%emt 0:00:36] White mates.} Qd7 {[%emt 0:00:31]} 47. a4 {[%emt 0:00:35][%cal Ba2a4,Ba4a5,Ba5a6][%mdl 32]} e4 {[%emt 0:00:30][%cal Be5e4,Be4e3][%mdl 32]} 48. exd4 {[%emt 0:00:12]} Qxd4 {[%emt 0:00:01]} 49. a5 {[%emt 0:00:14]} e3 {[%emt 0:00:43]} 50. a6 {[%emt 0:00:18]} Kh7 {[%emt 0:00:26]} 51. Qf3 {[%emt 0:01:23]} Qb2+ {[%emt 0:00:49]} 52. Kh3 {[%emt 0:00:07]} Qe5 {[%emt 0:00:28]} 53. Qf7+ {[%emt 0:00:30] Weighted Error Value: White=0.18 (very precise) /Black=0.66.  Loses game:     	---       	Black=1      Mistake:       	White=4     	Black=5      Inaccurate:     	White=2     	Black=3      OK:         	White=8     	Black=6      Best:        	White=1     	---        Strong:       	White=1     	---} 1-0

[Event "French-ch U16-U18 2024"]
[Site "Agen"]
[Date "2024.04.19"]
[Round "7.14"]
[White "Milojevic-Daim, Lola-Shaina"]
[Black "Le Coz, Marie Sarah"]
[Result "0-1"]
[ECO "E60"]
[WhiteElo "1867"]
[BlackElo "1840"]
[Annotator "NA RC COMBH"]
[PlyCount "86"]
[EventDate "2024.04.14"]
[EventType "swiss"]
[EventCountry "FRA"]
[SourceTitle "playchess.com"]
[Source "ChessBase"]
[SourceQuality "1"]
[TimeControl "5400+30"]

1. d4 {[%emt 0:00:02]} Nf6 {[%emt 0:00:06]} 2. c4 {[%emt 0:00:06]} g6 {[%emt 0:00:11]} 3. h4 {[%emt 0:00:09]} Bg7 {[%emt 0:00:57]} 4. Nc3 {[%emt 0:00:08]} d5 {[%emt 0:00:47]} 5. h5 {[%emt 0:00:47]} h6 {[%emt 0:04:15]} 6. hxg6 {[%emt 0:06:30]} fxg6 {[%emt 0:00:07]} 7. Qc2 {[%emt 0:01:31]} Bf5 {[%emt 0:01:43]} 8. Qb3 {[%emt 0:00:48]} Nc6 {[%emt 0:06:28]} 9. cxd5 {[%emt 0:06:46]} Nxd4 {[%emt 0:09:00]} 10. Qa4+ {[%emt 0:00:15]} Nd7 {[%emt 0:00:06]} 11. e4 {[%emt 0:00:44]} O-O {[%emt 0:07:22]} 12. Bxh6 {[%emt 0:10:54]} Nb6 {[%emt 0:13:42]} 13. Qd1 {[%emt 0:02:37]} Bxe4 {[%emt 0:02:00]} 14. Bxg7 {[%emt 0:07:57]} Nc2+ {[%emt 0:05:14]} 15. Ke2 {[%emt 0:00:20]} Kxg7 {[%emt 0:02:19]} 16. Nxe4 {[%emt 0:00:27]} Nxa1 {[%emt 0:04:07]} 17. Qd4+ {[%emt 0:02:19]} Rf6 {[%emt 0:02:07]} 18. Nxf6 {[%emt 0:18:09]} exf6 {[%emt 0:00:28]} 19. Qf4 {[%emt 0:04:41]} Nxd5 {[%emt 0:06:35]} 20. Qh6+ {[%emt 0:03:17]} Kf7 {[%emt 0:00:13]} 21. Qd2 {[%emt 0:05:13]} Qe8+ {[%emt 0:06:34]} 22. Kd1 {[%emt 0:01:24]} Qc6 {[%emt 0:10:18]} 23. Nf3 {[%emt 0:12:20]} Rd8 {[%emt 0:03:39]} 24. Bd3 {[%emt 0:04:11]} Nb4 {[%emt 0:04:22]} 25. Qxb4 {[%emt 0:06:03]} Rxd3+ {[%emt 0:00:44]} 26. Ke2 {[%emt 0:00:12]} Qa6 {[%emt 0:02:17]} 27. Rh7+ {[%emt 0:04:28]} Kg8 {[%emt 0:02:23]} 28. Rg7+ {[%emt 0:00:19]} Kxg7 {[%emt 0:00:24]} 29. Qe7+ {[%emt 0:00:08]} Kh6 {[%emt 0:01:39]} 30. Qf8+ {[%emt 0:00:10]} Kh5 {[%emt 0:01:50]} 31. Qh8+ {[%emt 0:01:01]} Kg4 {[%emt 0:00:07]} 32. Qh3+ {[%emt 0:01:44]} Kf4 {[%emt 0:00:10]} 33. Qh4+ {[%emt 0:00:16]} Kf5 {[%emt 0:00:31]} 34. Qh3+ {[%emt 0:00:35]} Ke4 {[%emt 0:02:55]} 35. Nd2+ {[%emt 0:00:44]} Rxd2+ {[%emt 0:00:27]} 36. Kxd2 {[%emt 0:00:04]} Qa5+ {[%emt 0:01:22]} 37. Kd1 {[%emt 0:00:22]} Qh5+ {[%emt 0:00:35]} 38. f3+ {[%emt 0:00:19]} Ke3 {[%emt 0:00:39]} 39. Qe6+ {[%emt 0:00:31]} Qe5 {[%emt 0:00:09]} 40. Qd7 {[%emt 0:00:53]} Qd6+ {[%emt 0:00:31]} 41. Qxd6 {[%emt 0:00:06]} cxd6 {[%emt 0:00:06]} 42. Kc1 {[%emt 0:00:08]} Ke2 {[%emt 0:00:27]} 43. f4 {[%emt 0:00:09]} d5 {[%emt 0:00:13]} 0-1

[Event "French-ch U16-U18 2024"]
[Site "Agen"]
[Date "2024.04.19"]
[Round "7.15"]
[White "Riss, Selenia"]
[Black "Dufeux, Elia"]
[Result "1-0"]
[ECO "B22"]
[WhiteElo "1763"]
[BlackElo "1728"]
[Annotator "NA RC COMBH"]
[PlyCount "47"]
[EventDate "2024.04.14"]
[EventType "swiss"]
[EventCountry "FRA"]
[SourceTitle "playchess.com"]
[Source "ChessBase"]
[SourceQuality "1"]
[TimeControl "5400+30"]

1. e4 {[%emt 0:00:04]} c5 {[%emt 0:00:13]} 2. Nf3 {[%emt 0:00:32]} d6 {[%emt 0:00:12]} 3. c3 {[%emt 0:00:22]} Nc6 {[%emt 0:02:26]} 4. d4 {[%emt 0:10:50]} cxd4 {[%emt 0:00:50]} 5. cxd4 {[%emt 0:02:58]} Nf6 {[%emt 0:06:05]} 6. Nbd2 {[%emt 0:14:18]} e6 {[%emt 0:14:54]} 7. a3 {[%emt 0:04:06]} d5 {[%emt 0:07:33]} 8. e5 {[%emt 0:03:49]} Ne4 {[%emt 0:02:18]} 9. Bd3 {[%emt 0:05:40]} Nxd2 {[%emt 0:01:42]} 10. Bxd2 {[%emt 0:02:17]} Be7 {[%emt 0:01:24]} 11. O-O {[%emt 0:05:07]} O-O {[%emt 0:08:06]} 12. b4 {[%emt 0:07:39]} a6 {[%emt 0:01:23]} 13. Rc1 {[%emt 0:00:56]} f6 {[%emt 0:06:53]} 14. Re1 {[%emt 0:08:17]} fxe5 {[%emt 0:04:06]} 15. Nxe5 {[%emt 0:07:18]} Nxe5 {[%emt 0:03:08]} 16. dxe5 {[%emt 0:03:10]} Bg5 {[%emt 0:13:40]} 17. Bxg5 {[%emt 0:05:09]} Qxg5 {[%emt 0:00:06]} 18. Rc7 {[%emt 0:01:19]} Qh4 {[%emt 0:17:11]} 19. Qc2 {[%emt 0:00:32]} Rb8 {[%emt 0:01:29]} 20. Re3 {[%emt 0:01:00]} h6 {[%emt 0:05:43]} 21. Rg3 {[%emt 0:02:17]} Bd7 {[%emt 0:01:01]} 22. Rxd7 {[%emt 0:00:22]} Rfc8 {[%emt 0:00:30]} 23. Rdxg7+ {[%emt 0:00:55]} Kf8 {[%emt 0:00:13]} 24. Rg8+ {[%emt 0:13:33]} 1-0